bitfinex-derivatives/quotes_BTCF0:USTF0_20240907
["timestamp","ask_amount","ask_price","bid_price","bid_amount"]
[1725714486440,0.091489,54654.0,54653.0,0.09149]
[1725714486942,0.091489,54654.0,54653.0,0.09249]
[1725714487242,0.137789,54654.0,54653.0,0.09249]
[1725714487432,0.137789,54654.0,54653.0,0.09349]
[1725714487632,0.137789,54654.0,54653.0,0.09249]
[1725714487838,0.137789,54654.0,54653.0,0.09349]
[1725714489332,0.137789,54654.0,54653.0,0.002]
[1725714489530,0.32038167,54654.0,54653.0,0.002]
[1725714489736,0.229278,54654.0,54653.0,0.002]
[1725714490043,0.2856656,54654.0,54653.0,0.002]
[1725714490350,0.22951786,54654.0,54653.0,0.002]
[1725714490652,0.20279431,54654.0,54653.0,0.002]
[1725714491039,0.137789,54654.0,54653.0,0.002]
[1725714491239,0.20279369,54654.0,54653.0,0.002]
[1725714493140,0.33090721,54654.0,54653.0,0.002]
[1725714495035,0.20279369,54654.0,54653.0,0.002]
[1725714495240,0.24759718,54654.0,54653.0,0.002]
[1725714495638,0.24759718,54654.0,54640.0,0.02662321]
[1725714495639,0.091503,54646.0,54640.0,0.02662321]
[1725714495841,0.1,54641.0,54628.0,0.1]
[1725714496040,0.09117136,54630.0,54628.0,0.1]
[1725714496242,0.10940563,54633.0,54632.0,0.091526]
[1725714496939,0.10840563,54633.0,54632.0,0.091526]
[1725714497149,0.10840563,54634.0,54633.0,0.091524]
[1725714497342,0.10840563,54634.0,54633.0,0.191524]
[1725714498144,0.091517,54637.0,54633.0,0.191524]
[1725714498145,0.091517,54637.0,54634.0,0.091522]
[1725714498944,0.0486,54636.0,54634.0,0.091522]
[1725714500552,0.0486,54636.0,54634.0,0.092522]
[1725714502457,0.0486,54636.0,54635.0,0.091521]
[1725714503964,0.0486,54636.0,54635.0,0.092521]
[1725714507953,0.0486,54636.0,54635.0,0.282521]
[1725714509463,0.02702856,54639.0,54638.0,0.091515]
[1725714509663,0.140012,54640.0,54638.0,0.091515]
[1725714510563,0.091507,54643.0,54639.0,0.19]
[1725714510871,0.0489,54644.0,54643.0,0.091507]
[1725714511059,0.0489,54644.0,54643.0,0.281507]
[1725714513166,0.0489,54644.0,54643.0,0.282507]
[1725714513363,0.07856952,54644.0,54643.0,0.282507]
[1725714514054,0.07856952,54644.0,54643.0,0.283507]
[1725714514261,0.11391743,54644.0,54643.0,0.283507]
[1725714516967,0.11391743,54644.0,54643.0,0.093507]
[1725714517157,0.07856952,54644.0,54643.0,0.093507]
[1725714517358,0.17007452,54644.0,54643.0,0.002]
[1725714517557,0.3954235,54644.0,54643.0,0.002]
[1725714517968,0.2054235,54644.0,54643.0,0.002]
[1725714520070,0.20542558,54644.0,54643.0,0.002]
[1725714520467,0.23170532,54644.0,54643.0,0.002]
[1725714522067,0.270076,54644.0,54643.0,0.002]
[1725714522670,0.240405,54644.0,54643.0,0.002]
[1725714522968,0.27007599,54644.0,54643.0,0.002]
[1725714523677,0.33178535,54644.0,54643.0,0.093507]
[1725714524179,0.27007506,54644.0,54643.0,0.093507]
[1725714528476,0.43322553,54644.0,54643.0,0.093507]
[1725714529180,0.30542367,54644.0,54643.0,0.093507]
[1725714529771,0.30542001,54644.0,54643.0,0.093507]
[1725714530174,0.35023045,54644.0,54643.0,0.093507]
[1725714531176,0.49628972,54644.0,54643.0,0.093507]
[1725714532685,0.40478472,54644.0,54643.0,0.093507]
[1725714533075,0.30478472,54644.0,54643.0,0.093507]
[1725714533282,0.15872545,54644.0,54643.0,0.093507]
[1725714535385,0.07856842,54644.0,54643.0,0.093507]
[1725714538782,0.0489,54644.0,54643.0,0.093507]
[1725714539085,0.02599718,54645.0,54644.0,0.091505]
[1725714539281,0.0914772,54648.0,54647.0,0.0915]
[1725714539474,0.0914772,54648.0,54647.0,0.14609377]
[1725714539779,0.0914772,54648.0,54647.0,0.0915]
[1725714540086,0.0914772,54648.0,54647.0,0.14609377]
[1725714541181,0.0914772,54649.0,54648.0,0.091499]
[1725714541677,0.0914772,54649.0,54647.0,0.05559377]
[1725714541678,0.1,54650.0,54649.0,0.091497]
[1725714541883,0.12966597,54650.0,54649.0,0.091497]
[1725714543480,0.31106865,54650.0,54649.0,0.091497]
[1725714543673,0.35587483,54650.0,54649.0,0.091497]
[1725714544284,0.35587483,54650.0,54649.0,0.092497]
[1725714544479,0.35587483,54650.0,54649.0,0.093497]
[1725714546481,0.44736983,54650.0,54649.0,0.093497]
[1725714547387,0.30131056,54650.0,54649.0,0.093497]
[1725714547898,0.30131036,54650.0,54649.0,0.093497]
[1725714548285,0.191495,54650.0,54649.0,0.093497]
[1725714548493,0.30131036,54650.0,54649.0,0.093497]
[1725714549884,0.35747188,54650.0,54649.0,0.093497]
[1725714550482,0.22116075,54650.0,54649.0,0.093497]
[1725714552692,0.31265575,54650.0,54649.0,0.002]
[1725714552885,0.09151,54642.0,54639.0,0.0488]
[1725714553183,0.19151,54642.0,54641.0,0.09151]
[1725714553385,0.22117981,54642.0,54641.0,0.09151]
[1725714554582,0.26817981,54642.0,54641.0,0.09151]
[1725714554778,0.26817981,54642.0,54641.0,0.09251]
[1725714555083,0.26817981,54642.0,54641.0,0.09351]
[1725714556585,0.26817981,54642.0,54641.0,0.002]
[1725714556786,0.35968981,54642.0,54641.0,0.002]
[1725714556990,0.091523,54634.0,54631.0,0.05459377]
[1725714557185,0.19144224,54632.0,54631.0,0.091527]
[1725714557392,0.091528,54631.0,54627.0,0.091533]
[1725714557579,0.19144292,54628.0,54627.0,0.091533]
[1725714558090,0.1,54628.0,54627.0,0.091533]
[1725714558497,0.1,54628.0,54627.0,0.14612677]
[1725714559081,0.1,54628.0,54627.0,0.091533]
[1725714559489,0.26465065,54631.0,54627.0,0.091533]
[1725714559689,0.26465065,54631.0,54627.0,0.14612677]
[1725714559891,0.26465065,54631.0,54627.0,0.091533]
[1725714560091,0.191528,54631.0,54627.0,0.091533]
[1725714560287,0.096,54632.0,54630.0,0.091529]
[1725714560484,0.16912265,54632.0,54630.0,0.091529]
[1725714561290,0.001,54631.0,54630.0,0.091529]
[1725714562002,0.1,54631.0,54630.0,0.091529]
[1725714563292,0.101,54631.0,54630.0,0.091529]
[1725714563790,0.102,54631.0,54630.0,0.091529]
[1725714564195,0.193527,54631.0,54630.0,0.091529]
[1725714565292,0.102,54631.0,54622.0,0.05459377]
[1725714565605,0.102,54631.0,54611.0,0.09156]
[1725714565606,0.1,54623.0,54614.0,0.09979377]
[1725714565791,0.17052265,54622.0,54619.0,0.091546]
[1725714565991,0.07301962,54620.0,54619.0,0.091546]
[1725714566193,0.07301962,54621.0,54619.0,0.091546]
[1725714567099,0.25896262,54622.0,54619.0,0.091546]
[1725714567296,0.25096262,54622.0,54619.0,0.091546]
[1725714568206,0.002,54621.0,54619.0,0.091546]
[1725714568802,0.009,54621.0,54619.0,0.092546]
[1725714569002,0.007,54621.0,54619.0,0.092546]
[1725714569506,0.098544,54621.0,54619.0,0.092546]
[1725714570800,0.102544,54621.0,54619.0,0.092546]
[1725714571998,0.011,54621.0,54620.0,0.091546]
[1725714573403,0.013,54621.0,54620.0,0.092546]
[1725714574511,0.014,54621.0,54620.0,0.092546]
[1725714575112,0.014,54621.0,54620.0,0.11909647]
[1725714575414,0.014,54621.0,54620.0,0.17369024]
[1725714575609,0.014,54621.0,54620.0,0.11909647]
[1725714576006,0.009,54621.0,54620.0,0.11909647]
[1725714576213,0.013,54621.0,54620.0,0.11909647]
[1725714576404,0.004,54621.0,54620.0,0.11809647]
[1725714576606,0.012,54621.0,54620.0,0.11909647]
[1725714580009,0.5372,54641.0,54620.0,1.26833647]
[1725714580210,0.0967,54638.0,54632.0,0.191526]
[1725714580412,0.02644971,54636.0,54632.0,0.1]
[1725714580721,0.18814292,54638.0,54635.0,0.191521]
[1725714580921,0.0967,54638.0,54635.0,0.191521]
[1725714581106,0.18814292,54638.0,54635.0,0.191521]
[1725714581711,0.21471523,54638.0,54635.0,0.191521]
[1725714582120,0.09144292,54637.0,54635.0,0.192521]
[1725714583415,0.09144292,54637.0,54635.0,0.193521]
[1725714584219,0.09144292,54636.0,54635.0,0.193521]
[1725714584422,0.09144292,54636.0,54635.0,0.093521]
[1725714584722,0.09124396,54636.0,54635.0,0.093521]
[1725714585515,0.002,54636.0,54635.0,0.093521]
[1725714586213,0.22319078,54636.0,54635.0,0.002]
[1725714587423,0.22119078,54636.0,54635.0,0.001]
[1725714587610,0.22719078,54636.0,54635.0,0.002]
[1725714588618,0.197519,54636.0,54635.0,0.002]
[1725714593720,0.097519,54636.0,54635.0,0.002]
[1725714600422,0.289038,54636.0,54635.0,0.002]
[1725714600625,0.38031531,54636.0,54635.0,0.002]
[1725714601209,0.289038,54636.0,54635.0,0.002]
[1725714601822,0.097519,54636.0,54635.0,0.093521]
[1725714602722,0.006,54636.0,54635.0,0.742601]
[1725714602927,0.006,54636.0,54635.0,1.50677876]
[1725714603226,0.006,54636.0,54635.0,1.434122]
[1725714603632,0.006,54636.0,54635.0,1.342601]
[1725714610435,0.006,54636.0,54635.0,0.193521]
[1725714611919,0.006,54636.0,54635.0,0.24801091]
[1725714612234,0.006,54636.0,54635.0,0.193521]
[1725714612431,0.006,54636.0,54635.0,0.093521]
[1725714614528,0.097519,54636.0,54635.0,0.002]
[1725714616432,0.006,54636.0,54635.0,0.193521]
[1725714618434,0.006,54636.0,54635.0,0.24800534]
[1725714618631,0.006,54636.0,54635.0,0.193521]
[1725714619331,0.09732251,54636.0,54635.0,0.193521]
[1725714619632,0.006,54636.0,54635.0,0.193521]
[1725714620739,0.006,54636.0,54635.0,0.093521]
[1725714620930,0.09732251,54636.0,54635.0,0.093521]
[1725714621237,0.006,54636.0,54635.0,0.093521]
[1725714621736,0.03566986,54636.0,54635.0,0.093521]
[1725714623239,0.14540055,54636.0,54635.0,0.093521]
[1725714623539,0.19250055,54636.0,54635.0,0.093521]
[1725714623738,0.19250055,54636.0,54635.0,0.002]
[1725714624130,0.17428886,54636.0,54635.0,0.002]
[1725714624642,0.22128886,54636.0,54635.0,0.002]
[1725714625735,0.191619,54636.0,54635.0,0.05648434]
[1725714626134,0.191619,54636.0,54635.0,0.002]
[1725714631334,0.200619,54636.0,54635.0,0.002]
[1725714631741,0.194619,54636.0,54635.0,0.07363457]
[1725714631949,0.200619,54636.0,54635.0,0.07463457]
[1725714633640,0.3398968,54636.0,54635.0,0.002]
[1725714634445,0.3398968,54636.0,54635.0,0.093521]
[1725714634634,0.23028995,54636.0,54635.0,0.093521]
[1725714634942,0.1091,54636.0,54635.0,0.093521]
[1725714635252,0.13876841,54636.0,54635.0,0.093521]
[1725714638445,0.13876976,54636.0,54635.0,0.093521]
[1725714639246,0.23028879,54636.0,54635.0,0.002]
[1725714640642,0.27380485,54636.0,54635.0,0.002]
[1725714641036,0.27380485,54636.0,54635.0,0.093521]
[1725714642940,0.200619,54636.0,54635.0,0.093521]
[1725714653052,0.27380485,54636.0,54635.0,0.093521]
[1725714654660,0.27380485,54636.0,54635.0,0.16636628]
[1725714655450,0.27383527,54636.0,54635.0,0.16636628]
[1725714655645,0.31045642,54636.0,54635.0,0.093521]
[1725714656049,0.26564123,54636.0,54635.0,0.002]
[1725714656258,0.31045948,54636.0,54635.0,0.002]
[1725714658051,0.3936955,54636.0,54635.0,0.002]
[1725714659151,0.26564775,54636.0,54635.0,0.002]
[1725714659754,0.3936955,54636.0,54635.0,0.002]
[1725714660357,0.3936714,54636.0,54635.0,0.002]
[1725714660661,0.39366839,54636.0,54635.0,0.002]
[1725714661966,0.26564775,54636.0,54635.0,0.002]
[1725714662154,0.39366406,54636.0,54635.0,0.002]
[1725714663865,0.200619,54636.0,54635.0,0.002]
[1725714664968,0.27376491,54636.0,54635.0,0.002]
[1725714667661,0.200619,54636.0,54635.0,0.002]
[1725714667866,0.200619,54636.0,54635.0,0.093521]
[1725714670766,0.26564223,54636.0,54635.0,0.093521]
[1725714671157,0.39365854,54636.0,54635.0,0.093521]
[1725714674458,0.43847858,54636.0,54635.0,0.093521]
[1725714674659,0.31046227,54636.0,54635.0,0.093521]
[1725714675060,1.36802327,54636.0,54618.0,0.05463295]
[1725714675261,0.091549,54619.0,54618.0,0.091548]
[1725714675492,0.20129092,54619.0,54618.0,0.091548]
[1725714675669,0.12122117,54619.0,54618.0,0.091548]
[1725714675866,0.091551,54617.0,54614.0,0.091555]
[1725714676171,0.10922417,54616.0,54615.0,0.091554]
[1725714676872,0.091552,54616.0,54615.0,0.091554]
[1725714677266,0.03536279,54616.0,54602.0,0.3224]
[1725714677460,0.07311431,54605.0,54602.0,0.4224]
[1725714677660,0.07311431,54604.0,54603.0,0.091574]
[1725714677972,0.1,54608.0,54607.0,0.091567]
[1725714678275,0.10960224,54610.0,54607.0,0.091567]
[1725714678483,0.09127876,54608.0,54607.0,0.091567]
[1725714678773,0.30116324,54611.0,54607.0,0.14619995]
[1725714678774,0.191561,54611.0,54607.0,0.14619995]
[1725714679275,0.091561,54611.0,54608.0,0.091566]
[1725714679476,0.003,54610.0,54608.0,0.091566]
[1725714679776,0.003,54610.0,54609.0,0.091564]
[1725714681074,0.094561,54611.0,54609.0,0.091564]
[1725714681266,0.094561,54611.0,54610.0,0.1]
[1725714681575,0.097561,54611.0,54610.0,0.1]
[1725714681767,0.094561,54611.0,54610.0,0.1]
[1725714681967,0.003,54611.0,54610.0,0.1]
[1725714682274,0.004,54611.0,54610.0,0.1]
[1725714682579,0.01,54611.0,54610.0,0.191562]
[1725714683275,0.006,54611.0,54610.0,0.191562]
[1725714683467,0.011,54611.0,54610.0,0.191562]
[1725714685879,0.0937,54620.0,54619.0,0.091547]
[1725714686079,0.0937,54620.0,54619.0,0.090347]
[1725714688089,0.0937,54620.0,54619.0,0.280347]
[1725714688276,0.1077,54620.0,54619.0,0.280347]
[1725714689089,0.0937,54620.0,54619.0,0.280347]
[1725714689277,0.0967,54620.0,54619.0,0.280347]
[1725714690675,0.0511,54620.0,54619.0,0.280347]
[1725714691978,0.0641,54620.0,54619.0,0.281347]
[1725714692575,0.0551,54620.0,54619.0,0.280347]
[1725714696689,0.007,54620.0,54619.0,0.280347]
[1725714697484,0.007,54620.0,54619.0,0.921134]
[1725714697685,0.007,54620.0,54619.0,1.521134]
[1725714700894,0.007,54620.0,54619.0,1.59397928]
[1725714701482,0.007,54620.0,54619.0,1.521134]
[1725714702690,0.007,54620.0,54619.0,0.921134]
[1725714702894,0.007,54620.0,54619.0,1.521134]
[1725714703085,0.007,54620.0,54619.0,0.921134]
[1725714704382,0.007,54620.0,54619.0,1.521134]
[1725714707599,0.007,54620.0,54619.0,0.921134]
[1725714709693,0.007,54620.0,54619.0,0.371894]
[1725714709888,0.007,54620.0,54619.0,0.281894]
[1725714712405,0.0800218,54620.0,54619.0,0.281894]
[1725714713792,0.0800218,54620.0,54619.0,0.090347]
[1725714713793,0.007,54620.0,54619.0,0.090347]
[1725714714101,0.007,54620.0,54619.0,0.190347]
[1725714714310,0.09827876,54620.0,54619.0,0.190347]
[1725714714602,0.007,54620.0,54619.0,0.190347]
[1725714714995,0.09839572,54620.0,54619.0,0.190347]
[1725714715501,0.03667815,54620.0,54619.0,0.190347]
[1725714715803,0.007,54620.0,54619.0,0.190347]
[1725714720407,0.007,54620.0,54619.0,0.28116795]
[1725714721509,0.007,54620.0,54619.0,0.42065954]
[1725714721706,0.007,54620.0,54619.0,0.32983859]
[1725714722293,0.007,54620.0,54619.0,0.43882373]
[1725714723710,0.007,54620.0,54619.0,0.32983859]
[1725714724007,0.007,54620.0,54619.0,0.190347]
[1725714725014,0.007,54620.0,54619.0,0.281894]
[1725714725213,0.08019011,54620.0,54619.0,0.33652061]
[1725714725406,0.08019011,54620.0,54619.0,0.281894]
[1725714726111,0.08019011,54620.0,54619.0,0.33652783]
[1725714726509,0.007,54620.0,54619.0,0.281894]
[1725714730916,0.0479,54625.0,54624.0,0.091539]
[1725714731115,0.0479,54625.0,54624.0,0.32207708]
[1725714731712,0.0479,54625.0,54624.0,0.32207343]
[1725714732012,0.0569,54625.0,54624.0,0.23201847]
[1725714732516,0.0649,54625.0,54624.0,0.23301847]
[1725714733714,0.0649,54625.0,54624.0,0.23301491]
[1725714734211,0.0479,54625.0,54624.0,0.23201491]
[1725714734926,0.0479,54625.0,54624.0,0.23301491]
[1725714735412,0.0479,54625.0,54624.0,0.193539]
[1725714735610,0.0479,54625.0,54624.0,0.2198641]
[1725714735811,0.0479,54625.0,54624.0,0.2208641]
[1725714738910,0.0479,54625.0,54624.0,0.31187749]
[1725714739632,0.0479,54625.0,54624.0,0.2208641]
[1725714739824,0.0479,54625.0,54624.0,0.31187749]
[1725714740119,0.0479,54625.0,54624.0,0.2208641]
[1725714740523,0.0479,54625.0,54624.0,0.36034191]
[1725714741016,0.0472,54626.0,54625.0,0.183074]
[1725714741218,0.0472,54626.0,54625.0,0.49230251]
[1725714741621,0.0472,54626.0,54625.0,0.32255181]
[1725714741815,0.0472,54626.0,54625.0,0.43168207]
[1725714742126,0.0472,54626.0,54625.0,0.32255181]
[1725714743227,0.0472,54626.0,54625.0,0.32355181]
[1725714744021,0.0472,54626.0,54625.0,0.43264069]
[1725714744418,0.0472,54626.0,54625.0,0.32355181]
[1725714746029,0.0472,54626.0,54625.0,0.184074]
[1725714751822,0.0472,54626.0,54625.0,0.23860841]
[1725714753626,0.0455,54628.0,54627.0,0.091534]
[1725714754126,0.0455,54628.0,54627.0,0.23099479]
[1725714755419,0.0505,54628.0,54627.0,0.23099479]
[1725714756225,0.0485,54628.0,54627.0,0.23299479]
[1725714756430,0.0455,54628.0,54627.0,0.23399479]
[1725714760916,0.0455,54628.0,54627.0,0.094534]
[1725714761420,0.0455,54628.0,54627.0,0.1490384]
[1725714761827,0.07320271,54630.0,54629.0,0.091531]
[1725714762027,0.14103014,54634.0,54632.0,0.091526]
[1725714762028,0.0496,54634.0,54632.0,0.091526]
[1725714762225,0.1227084,54634.0,54633.0,0.191524]
[1725714762426,0.0496,54634.0,54633.0,0.191524]
[1725714762730,0.1227084,54634.0,54633.0,0.191524]
[1725714764335,0.0556,54634.0,54633.0,0.192524]
[1725714764826,0.0606,54634.0,54633.0,0.192524]
[1725714765834,0.0606,54634.0,54633.0,0.2190675]
[1725714766824,0.1337084,54634.0,54633.0,0.2190675]
[1725714768133,0.0606,54634.0,54633.0,0.30990816]
[1725714768437,0.0606,54634.0,54633.0,0.44935642]
[1725714769834,0.0606,54634.0,54633.0,0.35851576]
[1725714770035,0.0606,54634.0,54633.0,0.44937704]
[1725714770437,0.0606,54634.0,54633.0,0.35851576]
[1725714771238,0.0606,54634.0,54633.0,0.25851576]
[1725714771440,0.0606,54634.0,54633.0,0.1190675]
[1725714773529,0.0606,54634.0,54633.0,0.001]
[1725714773732,0.7606,54634.0,54628.0,0.07273014]
[1725714774036,0.0731625,54629.0,54627.0,0.05455927]
[1725714774238,0.1731625,54630.0,54627.0,0.05455927]
[1725714774437,0.1731625,54630.0,54628.0,0.091532]
[1725714774735,0.64916,54630.0,54629.0,0.091531]
[1725714774928,0.7223225,54630.0,54629.0,0.091531]
[1725714775133,1.24916,54630.0,54629.0,0.091531]
[1725714775334,0.54916,54630.0,54629.0,0.091531]
[1725714775650,1.14916,54630.0,54629.0,0.091531]
[1725714776242,0.54916,54630.0,54629.0,0.091531]
[1725714776446,1.15016,54630.0,54629.0,0.091531]
[1725714777441,0.55116,54630.0,54629.0,0.091531]
[1725714777642,0.002,54630.0,54629.0,0.091531]
[1725714778143,0.002,54630.0,54629.0,0.191531]
[1725714778932,0.001,54630.0,54629.0,0.21761251]
[1725714779333,0.002,54630.0,54629.0,0.21761251]
[1725714779534,0.002,54630.0,54629.0,0.30914351]
[1725714779948,0.002,54630.0,54629.0,0.21761251]
[1725714791044,0.09143014,54632.0,54631.0,0.091527]
[1725714791241,0.0496,54634.0,54633.0,0.091524]
[1725714791458,0.0496,54634.0,54633.0,0.191524]
[1725714792565,0.0556,54634.0,54633.0,0.192524]
[1725714793846,0.0556,54634.0,54633.0,0.26523756]
[1725714794156,0.0606,54634.0,54633.0,0.26523756]
[1725714794666,0.0606,54634.0,54633.0,0.192524]
[1725714795046,0.0606,54634.0,54633.0,0.26524814]
[1725714795247,0.0606,54634.0,54633.0,0.192524]
[1725714795448,0.0606,54634.0,54633.0,0.26524814]
[1725714797257,0.0606,54634.0,54633.0,0.16524814]
[1725714798055,0.09027142,54634.0,54633.0,0.092524]
[1725714800961,0.09027172,54634.0,54633.0,0.092524]
[1725714802250,0.17031208,54634.0,54633.0,0.092524]
[1725714802446,0.1999838,54634.0,54633.0,0.092524]
[1725714802856,0.09027172,54634.0,54633.0,0.092524]
[1725714805861,0.17035235,54634.0,54633.0,0.092524]
[1725714806053,0.20002407,54634.0,54633.0,0.092524]
[1725714806249,0.0606,54634.0,54633.0,0.092524]
[1725714807653,0.0606,54634.0,54633.0,0.32285921]
[1725714808353,0.0606,54634.0,54633.0,0.32297773]
[1725714808864,0.0606,54634.0,54633.0,0.092524]
[1725714813160,0.09027158,54634.0,54633.0,0.092524]
[1725714819490,0.09027158,54634.0,54633.0,0.001]
[1725714819689,0.09027158,54634.0,54633.0,0.092524]
[1725714819883,0.12562197,54634.0,54633.0,0.092524]
[1725714820485,0.12562257,54634.0,54633.0,0.092524]
[1725714821086,0.09027187,54634.0,54633.0,0.092524]
[1725714821283,0.0606,54634.0,54633.0,0.092524]
[1725714821797,0.0606,54634.0,54633.0,0.16535841]
[1725714823502,0.011,54634.0,54633.0,0.16535841]
[1725714823688,0.011,54634.0,54633.0,0.092524]
[1725714825498,0.08422216,54634.0,54633.0,0.092524]
[1725714826599,0.011,54634.0,54633.0,0.165347]
[1725714826791,0.011,54634.0,54633.0,0.16534712]
[1725714827498,0.0842142,54634.0,54633.0,0.092524]
[1725714827686,0.011,54634.0,54633.0,0.092524]
[1725714831593,0.011,54634.0,54633.0,0.16535582]
[1725714833597,0.03701443,54634.0,54633.0,0.16535582]
[1725714836299,0.07236478,54634.0,54633.0,0.092524]
[1725714836801,0.11717977,54634.0,54633.0,0.092524]
[1725714839308,0.20051084,54634.0,54633.0,0.092524]
[1725714839811,0.07236478,54634.0,54633.0,0.092524]
[1725714840308,0.07236476,54634.0,54633.0,0.092524]
[1725714840706,0.13914536,54634.0,54633.0,0.092524]
[1725714841009,0.13914517,54634.0,54633.0,0.092524]
[1725714841308,0.17449544,54634.0,54633.0,0.092524]
[1725714843105,0.04635033,54634.0,54633.0,0.092524]
[1725714843301,0.011,54634.0,54633.0,0.32298099]
[1725714843599,0.12012055,54640.0,54633.0,0.34106705]
[1725714843807,0.0469,54640.0,54639.0,0.191514]
[1725714845202,0.0489,54640.0,54639.0,0.092514]
[1725714845402,0.0539,54640.0,54639.0,0.092514]
[1725714845709,0.007,54640.0,54639.0,0.092514]
[1725714846108,0.012,54640.0,54639.0,0.093514]
[1725714846811,0.012,54640.0,54639.0,0.11954197]
[1725714847211,0.012,54640.0,54639.0,0.21954197]
[1725714851404,0.0473439,54640.0,54639.0,0.21954197]
[1725714851607,0.07701006,54640.0,54639.0,0.21954197]
[1725714853713,0.07701006,54640.0,54639.0,0.11954197]
[1725714853905,0.14014511,54640.0,54639.0,0.02802797]
[1725714854105,0.12182022,54640.0,54639.0,0.02802797]
[1725714854414,0.16992022,54640.0,54639.0,0.02802797]
[1725714855107,0.18801495,54640.0,54639.0,0.11954197]
[1725714855311,0.25302501,54640.0,54639.0,0.11954197]
[1725714858409,0.012,54640.0,54639.0,0.19223633]
[1725714858712,0.012,54640.0,54639.0,0.29223633]
[1725714859404,0.012,54640.0,54639.0,0.21954197]
[1725714862719,0.012,54640.0,54639.0,0.11954197]
[1725714866418,0.012,54640.0,54639.0,0.19223488]
[1725714867316,0.012,54640.0,54639.0,0.11954197]
[1725714869221,0.012,54640.0,54639.0,0.28223488]
[1725714870020,0.012,54640.0,54639.0,0.20954197]
[1725714870427,0.012,54640.0,54639.0,0.28227645]
[1725714871517,0.012,54640.0,54639.0,0.20954197]
[1725714872228,0.08509235,54640.0,54639.0,0.10954197]
[1725714872928,0.012,54640.0,54639.0,0.10954197]
[1725714873327,0.04166836,54640.0,54639.0,0.20954197]
[1725714873721,0.1514565,54640.0,54639.0,0.20954197]
[1725714877029,0.0770132,54640.0,54639.0,0.20954197]
[1725714881535,0.012,54640.0,54639.0,0.30056745]
[1725714881932,0.012,54640.0,54639.0,0.44000756]
[1725714882323,0.012,54640.0,54639.0,0.43994452]
[1725714882625,0.012,54640.0,54639.0,0.43994535]
[1725714883024,0.012,54640.0,54639.0,0.34898208]
[1725714883228,0.012,54640.0,54639.0,0.43994141]
[1725714883429,0.012,54640.0,54639.0,0.34898208]
[1725714884538,0.012,54640.0,54639.0,0.43993823]
[1725714885038,0.012,54640.0,54639.0,0.34898208]
[1725714886244,0.012,54640.0,54639.0,0.24898208]
[1725714886541,0.012,54640.0,54639.0,0.34898208]
[1725714888435,0.04166591,54640.0,54639.0,0.20954197]
[1725714894454,0.10782173,54644.0,54639.0,0.20954197]
[1725714894753,6.2e-07,54643.0,54642.0,0.183018]
[1725714894945,0.029661,54654.0,54643.0,0.091507]
[1725714895140,0.06499723,54653.0,54647.0,0.0915]
[1725714895352,0.1413,54659.0,54644.0,0.10114814]
[1725714895652,0.07313771,54645.0,54644.0,0.28415814]
[1725714895859,0.07313771,54645.0,54644.0,0.22961]
[1725714896155,0.07313771,54645.0,54644.0,0.28410776]
[1725714896353,0.07313771,54657.0,54647.0,0.001]
[1725714896554,0.01,54653.0,54652.0,0.091492]
[1725714896755,0.01,54653.0,54652.0,0.191492]
[1725714898356,0.0455,54659.0,54658.0,0.091482]
[1725714898649,0.0455,54659.0,54658.0,0.191482]
[1725714899549,0.0455,54659.0,54658.0,0.192482]
[1725714899944,0.0455,54659.0,54658.0,0.193482]
[1725714900451,0.0455,54659.0,54658.0,0.22647433]
[1725714901747,0.09162,54664.0,54663.0,0.091474]
[1725714901947,0.09162,54664.0,54663.0,0.191474]
[1725714902552,0.09162,54664.0,54658.0,0.03499233]
[1725714903055,0.091475,54663.0,54661.0,0.1]
[1725714903456,0.03533354,54662.0,54661.0,0.1]
[1725714904152,0.091479,54660.0,54658.0,0.001]
[1725714904351,0.03533354,54659.0,54658.0,0.092482]
[1725714904552,0.12681354,54659.0,54658.0,0.1]
[1725714905249,0.12681354,54659.0,54658.0,0.191482]
[1725714905758,0.12681354,54659.0,54658.0,0.192482]
[1725714906146,0.03533354,54659.0,54658.0,0.192482]
[1725714906351,0.03533354,54659.0,54658.0,0.092482]
[1725714906558,0.03533354,54659.0,54658.0,0.191482]
[1725714906751,0.03633354,54659.0,54658.0,0.192482]
[1725714906953,0.03733354,54659.0,54658.0,0.193482]
[1725714908356,0.03733354,54659.0,54658.0,0.093482]
[1725714908357,0.12962216,54659.0,54658.0,0.093482]
[1725714908657,0.03733354,54659.0,54658.0,0.093482]
[1725714908863,0.03733354,54659.0,54658.0,0.193482]
[1725714909060,0.0821285,54659.0,54658.0,0.193482]
[1725714909358,0.03733354,54659.0,54658.0,0.193482]
[1725714909558,0.1736085,54659.0,54658.0,0.193482]
[1725714909757,0.1736085,54659.0,54658.0,0.093482]
[1725714909948,0.12881354,54659.0,54658.0,0.193482]
[1725714910154,0.22107153,54659.0,54658.0,0.193482]
[1725714910455,0.12881426,54659.0,54658.0,0.193482]
[1725714910658,0.25641101,54659.0,54658.0,0.193482]
[1725714910863,0.12881426,54659.0,54658.0,0.193482]
[1725714911057,0.22107558,54659.0,54658.0,0.193482]
[1725714911253,0.12881426,54659.0,54658.0,0.193482]
[1725714911453,0.09348,54659.0,54658.0,0.193482]
[1725714912462,0.09348,54659.0,54658.0,0.002]
[1725714912872,0.091482,54658.0,54646.0,0.05441724]
[1725714913060,0.091505,54644.0,54640.0,0.1]
[1725714913363,0.143,54643.0,54639.0,0.70355161]
[1725714913662,0.091512,54640.0,54639.0,0.70227161]
[1725714914059,0.090512,54640.0,54638.0,0.091515]
[1725714914263,0.090512,54640.0,54637.0,0.1]
[1725714914465,0.090512,54640.0,54637.0,0.191517]
[1725714914762,0.089512,54640.0,54637.0,0.191517]
[1725714915254,0.089512,54640.0,54639.0,0.1]